bitfinex-derivatives/quotes_SOLF0:USTF0_20240815
["timestamp","ask_amount","ask_price","bid_price","bid_amount"]
[1723718481829,0.04505841,141.61,141.59,17.0607]
[1723718482322,0.04505841,141.61,141.58,4.33234898]
[1723718482323,0.04505841,141.61,141.58,7.86314898]
[1723718482527,0.04505841,141.61,141.58,0.05234898]
[1723718483018,3.5307,141.59,141.58,0.05234898]
[1723718483820,13.53,141.59,141.52,4.28]
[1723718484130,13.53,141.58,141.52,4.28]
[1723718484418,3.5313,141.57,141.53,3.5321]
[1723718484920,3.5313,141.57,141.54,0.04770128]
[1723718485128,0.05374133,141.56,141.54,0.04770128]
[1723718485822,13.58374133,141.56,141.54,0.04770128]
[1723718486219,3.5317,141.55,141.54,0.04770128]
[1723718487629,3.58534133,141.56,141.54,0.04770128]
[1723718490127,0.05374133,141.56,141.54,0.04770128]
[1723718491435,0.05374133,141.56,141.54,3.57970128]
[1723718491934,0.05374133,141.56,141.54,0.04770128]
[1723718493933,3.58524133,141.56,141.54,0.04770128]
[1723718494128,0.05374133,141.56,141.54,0.04770128]
[1723718494430,13.58374133,141.56,141.54,0.04770128]
[1723718495135,13.58374133,141.56,141.5,3.5329]
[1723718495526,3.5321,141.54,141.5,3.5329]
[1723718495727,13.58374133,141.56,141.5,3.5329]
[1723718496334,3.5321,141.54,141.5,17.0629]
[1723718497535,3.5322,141.53,141.5,13.53]
[1723718498136,3.58270914,141.53,141.5,13.53]
[1723718499336,3.58270914,141.53,141.49,7.8132]
[1723718499337,3.5325,141.52,141.49,7.8132]
[1723718499533,0.05050914,141.53,141.49,3.5332]
[1723718500426,3.58300914,141.53,141.49,3.5332]
[1723718500625,0.05050914,141.53,141.49,3.5332]
[1723718501030,3.5325,141.52,141.48,17.0634]
[1723718501231,3.5325,141.52,141.48,13.53]
[1723718501431,0.05050914,141.53,141.48,13.53]
[1723718501637,3.5327,141.51,141.48,13.53]
[1723718502937,3.533,141.5,141.46,3.5339]
[1723718503138,3.533,141.5,141.46,17.0639]
[1723718503634,3.5332,141.49,141.45,17.0641]
[1723718503832,0.05355393,141.49,141.44,4.34]
[1723718504024,0.05355393,141.49,141.46,13.53]
[1723718504225,0.05355393,141.49,141.43,3.52625383]
[1723718504532,0.05355393,141.49,141.43,17.05625383]
[1723718504732,3.5337,141.48,141.43,17.0646]
[1723718504927,0.05355393,141.49,141.45,13.53]
[1723718505132,0.05355393,141.49,141.46,13.53]
[1723718506238,0.05355393,141.49,141.43,3.55597512]
[1723718506439,0.05355393,141.49,141.41,5.6974]
[1723718506631,0.05355393,141.49,141.44,13.53]
[1723718506836,3.5336,141.48,141.44,17.0643]
[1723718509745,3.58685393,141.49,141.46,13.53]
[1723718510033,3.58685393,141.49,141.47,13.53]
[1723718510034,0.05355393,141.49,141.47,13.53]
[1723718510237,4.34,141.53,141.49,3.533]
[1723718510442,4.34,141.53,141.49,17.063]
[1723718510630,4.34,141.53,141.49,13.53]
[1723718511035,0.04710799,141.52,141.49,13.53]
[1723718511328,3.5327,141.51,141.48,13.53]
[1723718511533,0.04710799,141.52,141.48,13.53]
[1723718511730,0.04710799,141.52,141.45,4.34]
[1723718511935,3.5331,141.5,141.47,13.53]
[1723718512946,0.04710799,141.52,141.47,13.53]
[1723718513235,0.04710799,141.52,141.48,13.53]
[1723718513541,3.57970799,141.52,141.48,17.0633]
[1723718514947,0.04710799,141.52,141.5,3.533]
[1723718515134,0.04710799,141.52,141.5,13.53]
[1723718515440,0.04710799,141.52,141.49,13.53]
[1723718516034,3.57960799,141.52,141.49,13.53]
[1723718516336,0.04710799,141.52,141.48,13.53]
[1723718516737,0.04710799,141.52,141.48,17.0633]
[1723718516937,0.04710799,141.52,141.48,13.53]
[1723718517137,0.04710799,141.52,141.46,13.53]
[1723718517736,3.5331,141.5,141.46,17.0638]
[1723718518137,0.04710799,141.52,141.46,13.53]
[1723718518337,3.5329,141.51,141.47,3.5336]
[1723718518843,0.04710799,141.52,141.48,13.53]
[1723718519342,3.57960799,141.52,141.48,17.0633]
[1723718519743,0.04710799,141.52,141.48,17.0633]
[1723718519942,0.04710799,141.52,141.48,3.5333]
[1723718520142,0.04710799,141.52,141.46,13.53]
[1723718520839,0.04710799,141.52,141.48,13.53]
[1723718521439,3.57960799,141.52,141.48,13.53]
[1723718522042,0.04710799,141.52,141.49,3.5332]
[1723718522235,0.04710799,141.52,141.48,13.53]
[1723718522437,0.04710799,141.52,141.5,17.0628]
[1723718523341,0.04710799,141.52,141.51,17.0627]
[1723718525646,3.5312,141.58,141.51,13.53]
[1723718525945,3.5312,141.58,141.54,13.53]
[1723718526145,3.5312,141.58,141.54,17.0618]
[1723718527049,0.04581383,141.57,141.55,0.04998359]
[1723718528543,3.57711383,141.57,141.55,0.04998359]
[1723718528743,0.04581383,141.57,141.55,0.04998359]
[1723718529147,3.57721383,141.57,141.55,0.04998359]
[1723718529342,0.04581383,141.57,141.55,0.04998359]
[1723718529751,3.5315,141.56,141.55,0.04998359]
[1723718529950,17.0615,141.56,141.55,0.04998359]
[1723718530549,18.3161,141.56,141.55,0.04998359]
[1723718531051,14.7846,141.56,141.5,3.5328]
[1723718531253,13.53,141.54,141.49,13.53]
[1723718531652,13.53,141.54,141.47,4.36]
[1723718531849,13.53,141.54,141.48,13.53]
[1723718532047,13.53,141.54,141.49,3.5332]
[1723718532454,0.04499606,141.52,141.49,3.5332]
[1723718533756,0.04499606,141.52,141.47,4.36]
[1723718533757,3.533,141.5,141.47,4.36]
[1723718533949,3.533,141.5,141.46,13.53]
[1723718534258,3.5329,141.51,141.47,3.5337]
[1723718534652,0.04499606,141.52,141.46,17.0639]
[1723718535357,3.5331,141.5,141.46,17.0639]
[1723718537151,3.5333,141.49,141.46,13.53]
[1723718537361,3.5333,141.49,141.45,3.5341]
[1723718537558,3.58686709,141.49,141.45,3.5341]
[1723718538559,3.58686709,141.49,141.44,17.89]
[1723718538856,3.58686709,141.49,141.46,3.534]
[1723718539056,3.58686709,141.49,141.44,17.89]
[1723718539257,3.58686709,141.49,141.45,3.5341]
[1723718542257,3.58686709,141.49,141.44,17.89]
[1723718542969,3.58686709,141.49,141.45,3.534]
[1723718544569,3.5335,141.48,141.44,7.8943]
[1723718546565,3.58696709,141.49,141.43,13.53]
[1723718547368,3.5335,141.48,141.45,3.5341]
[1723718547569,0.05356709,141.49,141.45,3.5341]
[1723718548068,3.58696709,141.49,141.45,3.5341]
[1723718548764,3.5335,141.48,141.44,3.5344]
[1723718549065,13.58356709,141.49,141.42,13.53]
[1723718549266,3.534,141.46,141.42,3.5348]
[1723718549564,3.534,141.46,141.41,17.89]
[1723718549871,13.53,141.46,141.39,21.38544458]
[1723718550171,0.05241592,141.45,141.4,3.5353]
[1723718550875,3.58661592,141.45,141.4,3.5353]
[1723718551068,13.58241592,141.45,141.4,3.5353]
[1723718551271,13.53,141.44,141.37,17.89]
[1723718551571,0.0456011,141.42,141.37,17.89]
[1723718551773,0.0456011,141.42,141.39,3.5356]
[1723718551969,3.5807011,141.42,141.37,17.89]
[1723718552378,0.0456011,141.42,141.38,13.53]
[1723718552971,0.0456011,141.42,141.39,3.5356]
[1723718553574,3.5806011,141.42,141.39,3.5356]
[1723718553782,3.5806011,141.42,141.38,17.0659]
[1723718554173,13.53,141.41,141.37,3.5362]
[1723718554685,17.0654,141.41,141.37,3.5362]
[1723718555175,3.5355,141.4,141.36,3.5364]
[1723718555484,13.53,141.41,141.34,17.87]
[1723718555778,0.04947497,141.39,141.34,17.87]
[1723718555978,0.04947497,141.39,141.31,28.26]
[1723718556179,0.04947497,141.39,141.17,33.77660893]
[1723718556180,0.04947497,141.39,141.34,13.53]
[1723718556682,13.53,141.41,141.34,13.53]
[1723718556877,0.04805845,141.38,141.34,17.13193098]
[1723718557077,0.04805845,141.38,141.36,3.5364]
[1723718558081,0.04805845,141.38,141.35,13.53]
[1723718558679,0.04805845,141.38,141.36,3.5363]
[1723718559071,0.04805845,141.38,141.35,13.53]
[1723718559273,0.04805845,141.38,141.35,17.0666]
[1723718559474,0.04805845,141.38,141.35,13.53]
[1723718559875,3.58425845,141.38,141.34,17.13193098]
[1723718560172,3.58425845,141.38,141.34,13.53]
[1723718560378,3.58425845,141.38,141.34,20.65428436]
[1723718560777,3.58425845,141.38,141.34,17.0668]
[1723718561779,3.58425845,141.38,141.34,13.53]
[1723718561983,3.58425845,141.38,141.32,37.55349533]
[1723718562774,3.58425845,141.38,141.34,3.5368]
[1723718563677,0.04805845,141.38,141.34,33.96]
[1723718565185,0.04805845,141.38,141.35,33.96]
[1723718565384,0.04805845,141.38,141.37,33.96]
[1723718565582,0.04805845,141.38,141.37,37.4962]
[1723718565778,0.04805845,141.38,141.37,3.5362]
[1723718567481,0.04805845,141.38,141.36,37.4963]
[1723718567687,0.04805845,141.38,141.36,33.96]
[1723718567888,0.04805845,141.38,141.37,3.5362]
[1723718568088,0.04805845,141.38,141.35,4.34]
[1723718568591,0.04805845,141.38,141.35,3.5366]
[1723718569284,0.04805845,141.38,141.36,3.5365]
[1723718573292,0.04805845,141.38,141.37,3.5362]
[1723718573493,0.04805845,141.38,141.37,37.4962]
[1723718574792,0.04805845,141.38,141.37,3.5362]
[1723718575094,0.04805845,141.38,141.37,37.4962]
[1723718581491,0.04805845,141.38,141.37,3.5362]
[1723718581891,0.04805845,141.38,141.37,17.1162]
[1723718583499,0.04805845,141.38,141.37,13.58]
[1723718583697,0.04805845,141.38,141.36,4.34]
[1723718584700,0.04805845,141.38,141.37,3.5362]
[1723718588700,0.04805845,141.38,141.36,7.8764]
[1723718588907,0.04805845,141.38,141.36,4.34]
[1723718589406,0.04805845,141.38,141.35,17.1165]
[1723718589603,0.04805845,141.38,141.35,13.58]
[1723718590000,0.04805845,141.38,141.35,17.1166]
[1723718590900,3.58415845,141.38,141.34,13.58]
[1723718591602,0.04805845,141.38,141.34,13.58]
[1723718592402,0.04805845,141.38,141.36,13.58]
[1723718593297,0.04805845,141.38,141.35,3.5366]
[1723718595104,0.04805845,141.38,141.35,17.1166]
[1723718599803,3.58405845,141.38,141.35,13.58]
[1723718603312,0.04805845,141.38,141.32,21.44914266]
[1723718603616,0.04805845,141.38,141.32,17.10914266]
[1723718604216,0.04805845,141.38,141.32,3.52914266]
[1723718604415,0.04805845,141.38,141.32,13.58]
[1723718604808,3.5366,141.36,141.32,17.1174]
[1723718605219,3.5366,141.36,141.32,20.6150735]
[1723718605918,3.5368,141.35,141.29,4.34]
[1723718606115,13.58,141.36,141.3,13.58]
[1723718606323,3.5371,141.34,141.3,20.6922568]
[1723718606516,13.58,141.34,141.29,4.34]
[1723718606716,13.58,141.34,141.29,3.46728677]
[1723718606920,3.5373,141.33,141.29,7.00548677]
[1723718607119,13.58,141.34,141.29,3.46728677]
[1723718607423,3.5383,141.29,141.19,4.34]
[1723718607612,4.34,141.3,141.25,13.58]
[1723718608111,4.34,141.3,141.19,4.34]
[1723718608314,0.0465237,141.29,141.26,13.58]
[1723718608624,0.0465237,141.29,141.26,17.1188]
[1723718608924,4.34,141.31,141.26,13.58]
[1723718609121,0.04561423,141.29,141.28,3.5385]
[1723718609320,13.58,141.37,141.28,13.58]
[1723718609522,19.1726,141.37,141.31,13.58]
[1723718609820,1.2526,141.37,141.33,13.58]
[1723718610016,1.2526,141.37,141.34,13.58]
[1723718610214,1.3133,141.39,141.34,13.58]
[1723718610617,0.05377557,141.38,141.35,0.04844171]
[1723718610823,0.05377557,141.38,141.36,13.58]
[1723718611925,0.05377557,141.38,141.35,0.04844171]
[1723718612313,0.05377557,141.38,141.35,3.58504171]
[1723718613221,3.58997557,141.38,141.35,0.04844171]
[1723718613426,0.05377557,141.38,141.35,0.04844171]
[1723718613721,2.65187557,141.38,141.35,0.04844171]
[1723718613927,3.5364,141.37,141.35,0.04844171]
[1723718615029,0.05377557,141.38,141.35,0.04844171]
[1723718615320,0.05377557,141.38,141.35,3.58514171]
[1723718616332,0.05377557,141.38,141.35,0.04844171]
[1723718617827,3.5364,141.37,141.35,0.04844171]
[1723718618222,0.05377557,141.38,141.35,0.04844171]
[1723718620837,0.05377557,141.38,141.35,3.58514171]
[1723718621125,0.05377557,141.38,141.35,0.04844171]
[1723718621524,34.00377557,141.38,141.35,0.04844171]
[1723718621825,3.5365,141.36,141.35,0.04844171]
[1723718623832,2.6417,141.37,141.35,0.04844171]
[1723718624032,0.05377557,141.38,141.35,0.04844171]
[1723718624233,3.5363,141.37,141.35,0.04844171]
[1723718627541,3.5365,141.36,141.35,0.04844171]
[1723718627734,0.05377557,141.38,141.35,0.04844171]
[1723718627933,3.5364,141.37,141.35,0.04844171]
[1723718628641,3.58987557,141.38,141.35,0.04844171]
[1723718628936,0.05377557,141.38,141.35,0.04844171]
[1723718629738,3.5362,141.37,141.35,0.04844171]
[1723718630533,3.5365,141.36,141.35,0.04844171]
[1723718631038,0.05377557,141.38,141.35,0.04844171]
[1723718631234,3.5364,141.37,141.35,0.04844171]
[1723718631538,4.44,141.4,141.36,54.25146985]
[1723718631732,35.2614,141.41,141.37,54.25146985]
[1723718631937,39.7014,141.41,141.38,54.25146985]
[1723718632239,3.5355,141.4,141.39,54.25146985]
[1723718633340,3.5357,141.39,141.38,0.0522172]
[1723718633534,3.5357,141.39,141.38,41.25179722]
[1723718634730,3.5356,141.4,141.38,41.25179722]
[1723718634936,3.5356,141.4,141.39,41.19958002]
[1723718635641,0.0508086,141.41,141.39,71.65715515]
[1723718635842,0.0508086,141.41,141.4,41.19958002]
[1723718636139,3.5860086,141.41,141.4,41.19958002]
[1723718636341,1.314,141.44,141.4,41.19958002]
[1723718636542,1.314,141.44,141.41,41.19958002]
[1723718636748,3.5347,141.43,141.42,41.19958002]
[1723718636936,3.5347,141.43,141.42,41.19370365]
[1723718639437,3.5347,141.43,141.42,28.18729677]
[1723718639637,3.535,141.42,141.41,0.04485933]
[1723718639845,11.25260424,141.42,141.41,0.04485933]
[1723718640237,3.535,141.42,141.41,0.04485933]
[1723718640544,3.5349,141.43,141.41,0.04485933]
[1723718640738,7.71737738,141.42,141.41,0.04485933]
[1723718640944,0.05389073,141.44,141.41,0.04485933]
[1723718641145,3.535,141.42,141.41,0.04485933]
[1723718643442,3.5348,141.43,141.41,0.04485933]
[1723718643740,0.05389073,141.44,141.41,0.04485933]
[1723718643948,3.5347,141.43,141.41,0.04485933]
[1723718644847,3.535,141.42,141.41,0.04485933]
[1723718645346,11.26002389,141.42,141.41,0.04485933]
[1723718646048,11.2598059,141.42,141.41,0.04485933]
[1723718646940,3.535,141.42,141.41,0.04485933]
[1723718648449,11.25929992,141.42,141.41,0.04485933]
[1723718649145,3.535,141.42,141.41,0.04485933]
[1723718649838,11.2590486,141.42,141.41,0.04485933]
[1723718650441,3.535,141.42,141.41,0.04485933]
[1723718650642,11.25758674,141.42,141.41,0.04485933]
[1723718653852,24.83758674,141.42,141.41,0.04485933]
[1723718654354,24.83684053,141.42,141.41,0.04485933]
[1723718654753,11.25684053,141.42,141.41,0.04485933]
[1723718655049,24.83684053,141.42,141.41,0.04485933]
[1723718655842,11.25684053,141.42,141.41,0.04485933]
[1723718657346,3.535,141.42,141.41,0.04485933]
[1723718658054,3.5349,141.43,141.41,0.04485933]
[1723718658949,0.05389073,141.44,141.41,13.62485933]
[1723718659249,0.05389073,141.44,141.42,3.5348]
[1723718660151,0.05389073,141.44,141.43,3.5347]
[1723718660548,7.72048272,141.49,141.42,33.92]
[1723718660862,7.72048272,141.48,141.43,33.92]
[1723718661153,33.92,141.52,141.43,38.38]
[1723718661353,33.92,141.52,141.45,3.5341]
[1723718661354,3.5332,141.49,141.45,3.5341]
[1723718661659,3.5332,141.49,141.43,38.38]
[1723718661660,3.5332,141.49,141.43,41.98434823]
[1723718662056,0.04994901,141.48,141.46,0.04545603]
[1723718663452,3.58354901,141.48,141.46,0.04545603]
[1723718663655,0.04994901,141.48,141.46,0.04545603]
[1723718665360,0.04994901,141.48,141.46,3.57935603]
[1723718665763,0.04994901,141.48,141.46,0.04545603]
[1723718667966,0.04994901,141.48,141.46,3.57945603]
[1723718668167,0.04994901,141.48,141.46,0.04545603]
[1723718669567,0.04994901,141.48,141.46,3.57945603]
[1723718670263,0.04994901,141.48,141.47,3.5337]
[1723718671060,0.04994901,141.48,141.46,3.57935603]
[1723718671267,0.04994901,141.48,141.46,8.03935603]
[1723718672060,0.04994901,141.48,141.47,3.5337]
[1723718672363,0.04994901,141.48,141.46,4.50545603]
[1723718672765,0.04994901,141.48,141.46,3.57925603]
[1723718673858,0.04994901,141.48,141.46,0.04545603]
[1723718675873,0.04994901,141.48,141.46,3.57915603]
[1723718676668,0.04994901,141.48,141.46,0.04545603]
[1723718677966,0.04994901,141.48,141.46,3.57925603]
[1723718681868,0.04994901,141.48,141.46,17.13925603]
[1723718682372,0.04994901,141.48,141.46,13.60545603]
[1723718684378,0.04994901,141.48,141.46,0.04545603]
[1723718686379,0.04994901,141.48,141.46,13.60545603]
[1723718687874,0.04994901,141.48,141.47,13.56]
[1723718688681,0.04994901,141.48,141.47,17.0937]
[1723718688883,0.04994901,141.48,141.47,13.56]
[1723718689178,0.04994901,141.48,141.46,13.60545603]
[1723718689878,0.04994901,141.48,141.46,17.13945603]
[1723718693382,0.04994901,141.48,141.47,3.5337]
[1723718693581,0.04994901,141.48,141.47,17.0937]
[1723718694785,3.5324,141.53,141.49,17.0931]
[1723718695785,0.04562932,141.52,141.5,0.05374527]
[1723718696289,0.04562932,141.52,141.5,3.58674527]
[1723718696490,0.04562932,141.52,141.51,13.56]
[1723718696685,0.04562932,141.52,141.51,17.0927]
[1723718698278,0.04562932,141.52,141.5,0.05374527]
[1723718700279,3.5327,141.51,141.5,0.05374527]
[1723718704088,3.57822932,141.52,141.5,0.05374527]
[1723718704695,3.5327,141.51,141.5,0.05374527]
[1723718710488,3.57822932,141.52,141.5,0.05374527]
[1723718711295,0.04562932,141.52,141.5,0.05374527]
[1723718712096,3.57812932,141.52,141.5,0.05374527]
[1723718712490,0.04562932,141.52,141.5,3.58664527]
[1723718712691,0.04562932,141.52,141.5,17.14664527]
[1723718712993,0.04562932,141.52,141.5,13.61374527]
[1723718713500,0.04562932,141.52,141.51,3.5327]
[1723718714302,1.241,141.57,141.5,13.61374527]
[1723718714490,1.241,141.57,141.53,13.56]
[1723718714695,3.5315,141.56,141.53,13.56]
[1723718715292,3.57641518,141.56,141.53,13.61247713]
[1723718716197,0.04491518,141.56,141.53,17.14467713]
[1723718717901,0.04491518,141.56,141.54,17.0919]
[1723718719101,0.04491518,141.56,141.55,3.5317]
[1723718720006,0.04491518,141.56,141.55,17.0917]
[1723718721597,0.04491518,141.56,141.55,13.56]
[1723718723195,0.04491518,141.56,141.54,3.5319]
[1723718723398,0.04491518,141.56,141.53,17.14457713]
[1723718724901,3.5318,141.55,141.53,0.05247713]
[1723718725699,3.532,141.54,141.53,0.05247713]
[1723718725898,0.04491518,141.56,141.53,0.05247713]
[1723718726100,7.7670767,141.56,141.53,0.05247713]
[1723718726297,3.532,141.54,141.53,0.05247713]
[1723718726899,3.5329,141.51,141.35,7.0731]
[1723718727099,13.56,141.5,141.44,13.56]
[1723718728296,13.56,141.5,141.41,4.4]
[1723718728498,0.04720513,141.48,141.46,0.05008132]
[1723718729904,3.58080513,141.48,141.46,0.05008132]
[1723718730897,0.04720513,141.48,141.46,0.05008132]
[1723718731893,3.58080513,141.48,141.46,0.05008132]
[1723718735709,3.5337,141.47,141.46,0.05008132]
[1723718738309,3.58080513,141.48,141.46,0.05008132]
[1723718738509,0.04720513,141.48,141.41,3.50004205]
[1723718738712,3.5343,141.45,141.41,17.0951]
[1723718739607,3.5345,141.44,141.41,17.0951]
[1723718739805,0.0492464,141.44,141.42,0.04851161]
[1723718740206,3.5349,141.43,141.42,0.04851161]
[1723718743515,0.0492464,141.44,141.43,3.5347]
[1723718745712,0.0492464,141.44,141.43,17.0947]
[1723718748211,4.7707,141.51,141.43,13.56]
[1723718748414,1.248,141.53,141.48,13.56]
[1723718748612,5.708,141.53,141.48,13.56]
[1723718749311,3.5326,141.52,141.48,17.0933]
[1723718749719,3.5326,141.52,141.49,13.56]
[1723718749915,3.5327,141.51,141.47,37.4736]
[1723718750117,3.5327,141.51,141.49,0.04614859]
[1723718750314,0.04909322,141.52,141.49,0.04614859]
[1723718750912,3.58169322,141.52,141.49,0.04614859]
[1723718751323,3.5329,141.51,141.49,0.04614859]
[1723718751529,0.04909322,141.52,141.49,0.04614859]
[1723718751929,3.5327,141.51,141.49,0.04614859]
[1723718752629,3.58169322,141.52,141.49,0.04614859]
[1723718753332,3.5327,141.51,141.49,0.04614859]
[1723718753927,3.533,141.5,141.49,0.04614859]
[1723718756529,3.5329,141.51,141.49,0.04614859]
[1723718757729,3.533,141.5,141.49,0.04614859]
[1723718760935,3.5338,141.47,141.41,39.6885]
[1723718761645,3.5338,141.47,141.43,3.5346]
[1723718761843,0.04615524,141.45,141.43,3.58562896]
[1723718762441,0.04615524,141.45,141.44,3.5345]
[1723718762842,0.04615524,141.45,141.43,0.05102896]
[1723718764937,3.58035524,141.45,141.43,0.05102896]
[1723718765445,0.04615524,141.45,141.43,0.05102896]
[1723718766043,3.58055524,141.45,141.43,0.05102896]
[1723718766440,0.04615524,141.45,141.43,0.05102896]
[1723718769947,3.5345,141.44,141.43,0.05102896]
[1723718770553,3.58055524,141.45,141.43,0.05102896]
[1723718772144,0.04615524,141.45,141.43,0.05102896]
[1723718772650,0.04615524,141.45,141.43,3.58572896]
[1723718773746,0.04615524,141.45,141.44,3.5345]
[1723718774145,0.04615524,141.45,141.43,13.62102896]
[1723718774545,0.04615524,141.45,141.43,17.15562896]
[1723718775348,0.04615524,141.45,141.43,0.05102896]
[1723718775855,3.58045524,141.45,141.43,0.05102896]
[1723718776053,0.04615524,141.45,141.43,0.05102896]
[1723718778151,0.04615524,141.45,141.43,3.58572896]
[1723718780059,0.04615524,141.45,141.43,17.15572896]
[1723718780355,0.04615524,141.45,141.44,7.06426576]
[1723718780556,14.8874,141.54,141.43,13.62102896]
[1723718780765,3.5325,141.52,141.47,17.1035]
[1723718780961,14.8874,141.54,141.47,17.1035]
[1723718781258,3.5325,141.52,141.47,17.1035]
[1723718781466,3.5325,141.52,141.48,3.5335]
[1723718781757,14.8874,141.54,141.47,13.57]
[1723718781958,3.5328,141.51,141.47,17.1036]
[1723718782156,3.58506109,141.51,141.48,0.04710786]
[1723718782350,3.58506109,141.51,141.5,3.533]
[1723718782351,0.05226109,141.51,141.5,3.533]
[1723718782553,0.05226109,141.51,141.5,17.103]
[1723718782757,19.4225,141.59,141.5,18.09]
[1723718782950,1.3325,141.59,141.53,13.57]
[1723718783562,3.5313,141.57,141.54,3.5319]
[1723718783860,1.3325,141.59,141.54,3.5319]
[1723718784255,1.3325,141.59,141.55,3.5316]
[1723718784760,0.04684145,141.57,141.55,3.5316]
[1723718786356,0.04684145,141.57,141.54,0.04987785]
[1723718786559,0.04684145,141.57,141.54,3.58177785]
[1723718787159,3.57804145,141.57,141.54,3.58177785]
[1723718787360,0.04684145,141.57,141.54,0.04987785]
[1723718787665,3.5316,141.56,141.54,0.04987785]
[1723718787856,0.04684145,141.57,141.54,0.04987785]
[1723718788364,3.57824145,141.57,141.54,0.04987785]
[1723718788665,0.04684145,141.57,141.54,0.04987785]
[1723718789065,0.04684145,141.57,141.54,3.58167785]
[1723718789368,0.04684145,141.57,141.54,0.04987785]
[1723718790657,0.04684145,141.57,141.55,3.5316]
[1723718791366,3.57804145,141.57,141.54,3.58167785]
[1723718792772,0.04684145,141.57,141.54,0.04987785]
[1723718793063,0.04684145,141.57,141.55,33.92]
[1723718793366,0.04684145,141.57,141.56,3.5315]
[1723718794772,0.04684145,141.57,141.55,3.5317]
[1723718795965,0.04684145,141.57,141.54,0.04987785]
[1723718796467,3.5316,141.56,141.54,0.04987785]
[1723718797068,3.5317,141.55,141.54,0.04987785]
[1723718799277,3.5316,141.56,141.54,0.04987785]
[1723718799977,3.5317,141.55,141.54,0.04987785]
[1723718809380,3.5316,141.56,141.54,0.04987785]
[1723718810374,3.5317,141.55,141.54,0.04987785]
[1723718811175,3.5316,141.56,141.54,0.04987785]
[1723718813080,3.5316,141.56,141.54,3.58187785]
[1723718813881,3.5316,141.56,141.54,0.04987785]
[1723718815781,3.57814145,141.57,141.54,0.04987785]
[1723718815980,0.04684145,141.57,141.54,0.04987785]
[1723718816481,0.04684145,141.57,141.55,3.5317]
[1723718816988,0.04684145,141.57,141.56,3.5315]
[1723718818581,3.9723,141.63,141.55,38.4]
[1723718818582,3.9723,141.63,141.58,3.5308]
[1723718819085,3.53,141.62,141.58,3.5308]
[1723718819385,3.53,141.62,141.59,3.5307]
[1723718820079,3.5298,141.63,141.59,3.5307]
[1723718820480,3.5294,141.65,141.59,33.92]
[1723718820679,0.04919284,141.61,141.59,38.45396074]
[1723718821284,0.04919284,141.61,141.6,3.5305]
[1723718821787,0.04919284,141.61,141.59,0.05396074]
[1723718821988,0.04919284,141.61,141.59,3.58456074]
[1723718822283,0.04919284,141.61,141.59,0.05396074]
[1723718822488,3.57939284,141.61,141.59,0.05396074]
[1723718822689,0.04919284,141.61,141.59,0.05396074]
[1723718824486,3.57949284,141.61,141.59,0.05396074]
[1723718824989,0.04919284,141.61,141.59,0.05396074]
[1723718825487,0.04919284,141.61,141.59,3.58466074]
[1723718826089,0.04919284,141.61,141.59,0.05396074]
[1723718827691,0.04919284,141.61,141.59,3.58446074]
[1723718828179,0.04919284,141.61,141.59,0.05396074]
[1723718828791,3.5305,141.6,141.59,0.05396074]
[1723718830300,3.57949284,141.61,141.59,0.05396074]
[1723718830990,0.04919284,141.61,141.59,0.05396074]
[1723718831298,0.04919284,141.61,141.6,3.5305]
[1723718839101,0.04919284,141.61,141.6,37.4505]
[1723718840092,3.529,141.66,141.6,37.4505]
[1723718840093,6.0636,141.67,141.63,3.5297]
[1723718840390,3.5288,141.67,141.63,33.92]
[1723718840894,3.5288,141.67,141.63,37.4496]
[1723718841090,4.8022,141.68,141.63,33.92]
[1723718841395,74.89465434,141.7,141.64,33.92]
[1723718841594,74.89465434,141.7,141.66,3.529]
[1723718841790,3.5282,141.69,141.66,3.529]
[1723718841995,0.04706416,141.68,141.65,3.5291]
[1723718842396,3.57556416,141.68,141.64,0.05159276]
[1723718842596,3.57556416,141.68,141.64,3.58089276]
[1723718842796,0.04706416,141.68,141.64,3.58089276]
[1723718842992,0.04706416,141.68,141.64,0.05159276]
[1723718843706,2.64636416,141.68,141.64,0.05159276]
[1723718843900,3.5292,141.65,141.64,0.05159276]
[1723718844198,36.56636416,141.68,141.56,33.92]